bitfinex/quotes_BTCUSD_20251202
["timestamp","ask_amount","ask_price","bid_price","bid_amount"]
[1764691429393,0.23045266,91125.0,91121.0,0.01097441]
[1764691429601,0.01097465,91119.0,91114.0,0.01097526]
[1764691429801,0.01097465,91119.0,91110.0,1.03223588]
[1764691429802,0.21950367,91115.0,91110.0,0.81272158]
[1764691429984,0.21950367,91115.0,91109.0,0.01097586]
[1764691430183,0.21950367,91115.0,91111.0,0.01097562]
[1764691430386,0.21950367,91115.0,91107.0,0.0109761]
[1764691430387,0.21950367,91115.0,91102.0,0.0109767]
[1764691430582,0.21950367,91115.0,91104.0,0.01097646]
[1764691430808,0.21950367,91115.0,91099.0,0.01097706]
[1764691430969,0.21950367,91115.0,91101.0,0.01097682]
[1764691431174,0.21950367,91115.0,91104.0,0.21952909]
[1764691431382,0.21950367,91115.0,91102.0,0.23051019]
[1764691431740,0.21950367,91115.0,91101.0,0.23051317]
[1764691431948,0.21950367,91115.0,91099.0,0.01097706]
[1764691431949,0.24867638,91115.0,91099.0,0.01097706]
[1764691432144,0.21950367,91115.0,91091.0,0.23053675]
[1764691432355,0.24149568,91115.0,91094.0,0.01097767]
[1764691432558,0.24149568,91115.0,91098.0,0.2195426]
[1764691432769,0.28057462,91115.0,91098.0,0.2195426]
[1764691433068,0.28057462,91115.0,91098.0,0.01097718]
[1764691433276,0.28057462,91115.0,91099.0,0.01097706]
[1764691433430,0.28057462,91115.0,91095.0,0.21955011]
[1764691433431,0.03907894,91117.0,91103.0,0.01097658]
[1764691433635,0.2489809,91115.0,91105.0,0.01097634]
[1764691433896,0.02947676,91114.0,91105.0,0.01097634]
[1764691434275,0.02947676,91115.0,91106.0,0.01097622]
[1764691434489,0.01097465,91119.0,91112.0,0.23048543]
[1764691434659,0.05861842,91132.0,91106.0,0.01097622]
[1764691434660,0.08027982,91124.0,91109.0,0.81272158]
[1764691434898,0.08027982,91124.0,91106.0,0.01097622]
[1764691434899,0.21950282,91115.0,91108.0,0.21951895]
[1764691435246,0.21950282,91115.0,91098.0,0.01097718]
[1764691435436,0.21950282,91115.0,91096.0,0.01097743]
[1764691435610,0.21950282,91115.0,91100.0,0.01097694]
[1764691435814,0.24897958,91115.0,91099.0,0.01097706]
[1764691436034,0.21950282,91115.0,91099.0,0.01097706]
[1764691436237,0.21950282,91115.0,91101.0,0.01097682]
[1764691436398,0.21950517,91115.0,91101.0,0.01097682]
[1764691436596,0.21950517,91115.0,91099.0,0.01097706]
[1764691436828,0.21950517,91115.0,91100.0,0.21953804]
[1764691437045,0.21950301,91118.0,91100.0,0.21953804]
[1764691437046,0.04044141,91118.0,91110.0,0.01097574]
[1764691437247,0.21950462,91115.0,91110.0,0.01097574]
[1764691437399,0.21950462,91115.0,91108.0,0.23049503]
[1764691437599,0.24306795,91115.0,91109.0,0.23049196]
[1764691437851,0.24036987,91113.0,91110.0,0.01097574]
[1764691438059,0.21951096,91112.0,91110.0,0.00011398]
[1764691438860,0.00988646,91113.0,91110.0,0.00011398]
[1764691439014,0.21951067,91112.0,91110.0,0.00011398]
[1764691439218,0.00988646,91113.0,91110.0,0.00011398]
[1764691439420,0.21951132,91112.0,91110.0,0.00011398]
[1764691439622,0.24036975,91113.0,91110.0,0.00011398]
[1764691439870,0.02086184,91113.0,91110.0,0.00011398]
[1764691440072,0.00116102,91113.0,91111.0,0.21951118]
[1764691440459,0.00116102,91113.0,91110.0,0.00011398]
[1764691440839,0.00116102,91113.0,91111.0,0.21951121]
[1764691441491,0.00116102,91113.0,91112.0,0.021992]
[1764691441699,0.00116102,91113.0,91111.0,0.21951121]
[1764691442838,0.00116102,91113.0,91112.0,0.21951005]
[1764691443463,0.00116102,91113.0,91112.0,0.24150205]
[1764691443674,0.00116102,91113.0,91112.0,0.21951005]
[1764691443877,0.00116102,91113.0,91110.0,0.23060178]
[1764691444093,0.00116102,91113.0,91112.0,0.21951005]
[1764691444441,0.00116102,91113.0,91112.0,0.24150205]
[1764691445843,0.00116102,91113.0,91112.0,0.23739005]
[1764691447202,0.00116102,91113.0,91112.0,0.21951005]
[1764691447645,0.00116102,91113.0,91112.0,0.23739005]
[1764691447844,0.00116102,91113.0,91112.0,0.24150205]
[1764691448067,0.00116102,91113.0,91112.0,0.25938205]
[1764691448272,0.00116102,91113.0,91112.0,0.23739005]
[1764691448790,0.00116102,91113.0,91112.0,0.25938205]
[1764691449050,0.00116102,91113.0,91112.0,0.21951005]
[1764691450457,0.00116102,91113.0,91112.0,0.24146105]
[1764691451015,0.00116102,91113.0,91112.0,0.021951]
[1764691451231,0.00116102,91113.0,91110.0,0.00011398]
[1764691451232,0.00116102,91113.0,91111.0,0.21951234]
[1764691451668,0.00116102,91113.0,91112.0,0.21951005]
[1764691452073,0.00116102,91113.0,91112.0,0.24146105]
[1764691452296,0.00116102,91113.0,91110.0,0.23060446]
[1764691452437,0.00116102,91113.0,91112.0,0.21951005]
[1764691453794,0.00116102,91113.0,91110.0,0.01108972]
[1764691453795,0.21951064,91112.0,91110.0,0.00011398]
[1764691454005,0.00116102,91113.0,91112.0,0.21951005]
[1764691454238,0.00116102,91113.0,91112.0,0.26345305]
[1764691454440,0.00116102,91113.0,91112.0,0.21951005]
[1764691454731,0.00116102,91113.0,91112.0,0.24150205]
[1764691454990,0.00116102,91113.0,91112.0,0.21951005]
[1764691455413,0.00116102,91113.0,91112.0,0.24150205]
[1764691455570,0.00116102,91113.0,91112.0,0.25934205]
[1764691456057,0.00116102,91113.0,91112.0,0.23735005]
[1764691456271,0.00116102,91113.0,91112.0,0.25934205]
[1764691456471,0.00116102,91113.0,91112.0,0.23735005]
[1764691456691,0.00116102,91113.0,91112.0,0.25934205]
[1764691457708,0.00116102,91113.0,91112.0,0.23735005]
[1764691458634,0.00116102,91113.0,91112.0,0.25934205]
[1764691458850,0.00116102,91113.0,91112.0,0.23735005]
[1764691459281,0.00116102,91113.0,91112.0,0.25934205]
[1764691460229,0.00116102,91113.0,91112.0,0.23735005]
[1764691460433,0.00116102,91113.0,91112.0,0.25934205]
[1764691461194,0.00116102,91113.0,91112.0,0.23735005]
[1764691461394,0.00116102,91113.0,91112.0,0.25934205]
[1764691461592,0.00116102,91113.0,91112.0,0.23735005]
[1764691461796,0.0002351,91153.0,91152.0,0.21941372]
[1764691462006,0.0002351,91153.0,91152.0,0.23725372]
[1764691462363,0.08300367,91162.0,91161.0,0.21939206]
[1764691462778,0.08300367,91162.0,91161.0,0.23723206]
[1764691462983,0.21931679,91193.0,91188.0,0.01096635]
[1764691463184,0.0240012,91193.0,91190.0,0.01096611]
[1764691463356,0.00037975,91193.0,91192.0,0.23017959]
[1764691464501,0.00037975,91193.0,91192.0,0.24801959]
[1764691464704,0.00037975,91193.0,91192.0,0.23017959]
[1764691464915,0.00037975,91193.0,91192.0,0.24801959]
[1764691465119,0.00037975,91193.0,91190.0,0.01096611]
[1764691465322,0.00037975,91193.0,91191.0,0.21931871]
[1764691465712,0.01096587,91192.0,91184.0,0.01096683]
[1764691465926,0.00037975,91193.0,91190.0,0.01096611]
[1764691466184,0.00037975,91193.0,91191.0,0.2193189]
[1764691466597,0.00037975,91193.0,91192.0,0.021992]
[1764691466801,0.00037975,91193.0,91191.0,0.2193189]
[1764691468089,0.00037975,91193.0,91192.0,0.021992]
[1764691468540,0.0015547,91193.0,91192.0,0.021992]
[1764691468658,0.0015547,91193.0,91191.0,0.2193189]
[1764691468858,0.00037975,91193.0,91191.0,0.2193189]
[1764691469198,0.00114559,91192.0,91191.0,0.2193189]
[1764691469577,0.00114559,91192.0,91191.0,0.6193189]
[1764691470038,0.00114559,91192.0,91191.0,0.6413109]
[1764691470236,0.00114559,91192.0,91191.0,0.6371189]
[1764691470438,0.00114559,91192.0,91191.0,0.6591109]
[1764691470849,0.01096046,91237.0,91219.0,0.21925256]
[1764691471042,0.00031391,91220.0,91219.0,0.21925256]
[1764691471247,0.00031391,91220.0,91218.0,0.21925488]
[1764691471456,0.00031391,91220.0,91216.0,0.21925923]
[1764691471457,0.01096346,91212.0,91192.0,0.01096587]
[1764691471786,0.01096346,91212.0,91188.0,0.01096635]
[1764691471787,0.01096803,91174.0,91144.0,0.021992]
[1764691471974,0.01096803,91174.0,91093.0,0.03293672]
[1764691471975,0.01096707,91182.0,91174.0,0.01096803]
[1764691472187,0.01096707,91182.0,91171.0,0.0109684]
[1764691472188,0.23031199,91181.0,91171.0,0.0109684]
[1764691472395,0.01096731,91180.0,91169.0,0.01096864]
[1764691472611,0.23032728,91175.0,91171.0,0.23033547]
[1764691472783,0.03284306,91185.0,91176.0,0.01096779]
[1764691472992,0.03284306,91185.0,91160.0,1.09061437]
[1764691472993,0.01096755,91178.0,91162.0,0.021992]
[1764691473189,0.01096755,91178.0,91160.0,1.09061437]
[1764691473190,0.01096779,91176.0,91171.0,0.0109684]
[1764691473394,0.01096791,91175.0,91171.0,0.0109684]
[1764691473605,0.01096791,91175.0,91171.0,0.23033447]
[1764691473781,0.23032243,91177.0,91173.0,0.01096815]
[1764691474143,0.01096827,91172.0,91167.0,0.23034536]
[1764691474338,0.01096888,91167.0,91163.0,0.21938488]
[1764691474575,0.23034375,91169.0,91165.0,0.01096912]
[1764691474780,0.01096924,91164.0,91160.0,0.01096972]
[1764691475001,0.01096912,91165.0,91162.0,0.01096948]
[1764691475204,0.01096876,91168.0,91164.0,0.21938334]
[1764691475403,0.25221432,91170.0,91164.0,0.21938334]
[1764691475404,0.03284306,91170.0,91165.0,0.01096912]
[1764691475611,0.03284306,91170.0,91163.0,0.01096936]
[1764691475612,0.01096876,91168.0,91163.0,0.01096936]
[1764691475816,0.23034505,91168.0,91164.0,0.2303532]
[1764691476019,0.23035229,91165.0,91157.0,0.21940026]
[1764691476227,0.23035229,91165.0,91154.0,0.01097044]
[1764691476228,0.2303694,91158.0,91154.0,0.01097044]
[1764691476435,0.2303694,91158.0,91125.0,0.43895588]
[1764691476436,0.01097152,91145.0,91136.0,0.0178]
[1764691476640,0.21943504,91144.0,91140.0,0.01097213]
[1764691476856,0.03284306,91156.0,91137.0,0.01097249]
[1764691476857,0.23038585,91152.0,91148.0,0.23039222]
[1764691477058,0.01097092,91150.0,91143.0,0.23040539]
[1764691477229,0.03284306,91156.0,91131.0,0.0178]
[1764691477230,0.03284306,91156.0,91150.0,0.21941722]
[1764691477441,0.03284306,91156.0,91152.0,0.23038279]
[1764691477646,0.01097032,91155.0,91152.0,0.00037975]
[1764691477854,0.21940958,91154.0,91152.0,0.00037975]
[1764691478021,0.21940927,91154.0,91152.0,0.00037975]
[1764691481106,0.02199201,91153.0,91152.0,0.00037975]
[1764691481918,0.24286973,91154.0,91152.0,0.00037975]
[1764691481919,0.26486174,91154.0,91152.0,0.00037975]
[1764691482280,0.02199201,91153.0,91152.0,0.00037975]
[1764691483083,0.24286973,91154.0,91152.0,0.00037975]
[1764691483287,0.21940927,91154.0,91152.0,0.00037975]
[1764691484088,0.03284306,91156.0,91152.0,0.00037975]
[1764691484338,0.21941131,91153.0,91152.0,0.00037975]
[1764691486065,0.35684131,91153.0,91152.0,0.00037975]
[1764691487068,0.06623,91153.0,91152.0,0.00037975]
[1764691487270,0.23412746,91155.0,91153.0,0.21940974]
[1764691487271,0.00375,91155.0,91153.0,0.21940974]
[1764691487527,0.00375,91155.0,91153.0,0.21940953]
[1764691487669,0.00375,91155.0,91154.0,0.15811]
[1764691488236,0.00375,91155.0,91154.0,0.15701]
[1764691488587,0.00375,91155.0,91154.0,0.179002]
[1764691488793,0.00375,91155.0,91154.0,0.15701]
[1764691488993,0.00375,91155.0,91154.0,0.179002]
[1764691489863,0.00375,91155.0,91154.0,0.15701]
[1764691489995,0.00375,91155.0,91154.0,0.196802]
[1764691491279,0.00375,91155.0,91154.0,0.17481]
[1764691491487,0.00375,91155.0,91154.0,0.196802]
[1764691491931,0.00375,91155.0,91154.0,0.17481]
[1764691492163,0.00375,91155.0,91154.0,0.196802]
[1764691492412,0.00375,91155.0,91154.0,0.17481]
[1764691492623,0.00375,91155.0,91154.0,0.179002]
[1764691492849,0.00375,91155.0,91154.0,0.15701]
[1764691493059,0.00375,91155.0,91154.0,0.196802]
[1764691493727,0.02899983,91200.0,91198.0,0.21930305]
[1764691493728,0.00023492,91200.0,91198.0,0.21930305]
[1764691493938,0.00023492,91200.0,91199.0,0.11336]
[1764691494142,0.00023492,91200.0,91199.0,0.20664]
[1764691495019,0.00034878,91200.0,91199.0,0.20664]
[1764691495238,0.00034878,91200.0,91198.0,0.21930305]
[1764691495239,0.00034878,91200.0,91197.0,0.21930293]
[1764691495448,0.00034878,91200.0,91198.0,0.2193023]
[1764691495838,0.00034878,91200.0,91198.0,0.21930073]
[1764691496071,0.00034878,91200.0,91190.0,1.09061437]
[1764691496072,0.01131369,91200.0,91190.0,1.09061437]
[1764691496284,0.01096503,91199.0,91190.0,0.01096611]
[1764691496499,0.23026669,91199.0,91190.0,0.01096611]
[1764691496721,0.21930402,91198.0,91194.0,0.21931091]
[1764691496947,0.00034878,91200.0,91198.0,0.21930182]
[1764691497159,0.00034878,91200.0,91197.0,0.01096527]
[1764691497160,0.00034878,91200.0,91197.0,0.2302682]
[1764691497368,0.00034878,91200.0,91197.0,0.01096527]
[1764691497572,0.00034878,91200.0,91197.0,0.23026989]
[1764691497844,0.00034878,91200.0,91194.0,0.01096563]
[1764691497845,0.23026638,91199.0,91194.0,0.01096563]
[1764691498056,0.00034878,91200.0,91198.0,0.21930161]
[1764691498427,0.00034878,91200.0,91199.0,0.15811]
[1764691498868,0.00034878,91200.0,91197.0,0.01096527]
[1764691499014,0.00034878,91200.0,91199.0,0.06483]
[1764691499410,0.00034878,91200.0,91199.0,0.15811]
[1764691499768,0.00034878,91200.0,91199.0,0.17591]
[1764691499969,0.00034878,91200.0,91199.0,0.197902]
[1764691500342,0.00034878,91200.0,91199.0,0.15811]
[1764691500543,0.00034878,91200.0,91199.0,0.17591]
[1764691501019,0.00034878,91200.0,91198.0,0.52930229]
[1764691501433,0.00034878,91200.0,91198.0,0.52930141]
[1764691502055,0.21930065,91199.0,91198.0,0.31]
[1764691502268,0.25261065,91199.0,91198.0,0.31]
[1764691502479,0.01096551,91195.0,91186.0,0.21933191]
[1764691502679,0.01096539,91196.0,91193.0,0.23028036]
[1764691502886,0.01096515,91198.0,91194.0,0.01096563]
[1764691503061,0.03331,91199.0,91194.0,0.01096563]
[1764691503289,0.00034878,91200.0,91199.0,0.21930065]
[1764691503493,0.00034878,91200.0,91199.0,0.28413065]
[1764691504175,0.00034878,91200.0,91199.0,0.37741065]
[1764691505588,0.00034878,91200.0,91199.0,0.39940265]
[1764691505788,0.00034878,91200.0,91199.0,0.37741065]
[1764691506190,0.00034878,91200.0,91199.0,0.39521065]
[1764691506430,0.00034878,91200.0,91199.0,0.41720265]
[1764691506637,0.00034878,91200.0,91199.0,0.39521065]
[1764691507922,0.00034878,91200.0,91199.0,0.41720265]
[1764691508106,0.00034878,91200.0,91199.0,0.37741065]
[1764691508313,0.00034878,91200.0,91199.0,0.39521065]
[1764691508513,0.00034878,91200.0,91199.0,0.41720265]
[1764691508921,0.00034878,91200.0,91199.0,0.39521065]
[1764691509118,0.00034878,91200.0,91199.0,0.41720265]
[1764691510780,0.0002,91220.0,91219.0,0.21925256]
[1764691510997,0.0002,91220.0,91219.0,0.36865456]
[1764691511225,0.00078714,91220.0,91219.0,0.46819456]
[1764691511629,0.0002,91250.0,91249.0,0.21918048]
[1764691511840,0.00031395,91250.0,91249.0,0.32879048]
[1764691511986,0.00031395,91250.0,91249.0,0.42833048]
[1764691512646,0.00031395,91250.0,91249.0,0.32879048]
[1764691512853,0.00031395,91250.0,91249.0,0.04857]
[1764691513024,0.01095914,91248.0,91243.0,0.04857]
[1764691513221,0.21918528,91247.0,91243.0,0.04857]
[1764691513494,0.0109595,91245.0,91238.0,0.04857]
[1764691513695,0.01095974,91243.0,91240.0,0.23016103]
[1764691513900,0.01095974,91243.0,91238.0,0.04857]
[1764691513901,0.23016228,91241.0,91238.0,0.04857]
[1764691514107,0.23016228,91241.0,91224.0,0.04857]
[1764691514108,0.21923594,91227.0,91224.0,0.04857]
[1764691514315,0.01096262,91219.0,91214.0,0.01096322]
[1764691514525,0.01096142,91229.0,91223.0,0.01096214]
[1764691514747,0.03284306,91226.0,91222.0,0.01096226]
[1764691514926,0.03284306,91226.0,91223.0,0.23020431]
[1764691515127,0.03284306,91226.0,91224.0,0.21924002]
[1764691515330,0.46778895,91258.0,91224.0,0.21924002]
[1764691515331,0.25251501,91239.0,91230.0,0.0109613]
[1764691515534,0.00011393,91239.0,91237.0,0.2192082]
[1764691515910,0.00011393,91239.0,91238.0,0.06104]
[1764691516121,0.00011393,91239.0,91238.0,0.16058]
[1764691516325,0.00011393,91239.0,91237.0,0.2192082]
[1764691516525,0.21931909,91239.0,91235.0,0.2301733]
[1764691516723,0.00011393,91239.0,91237.0,0.21920931]
[1764691517664,0.00011393,91239.0,91227.0,0.21923199]
[1764691517864,0.00011393,91239.0,91237.0,0.21920876]
[1764691518276,0.00011393,91239.0,91237.0,0.31874876]
[1764691518735,0.00011393,91239.0,91237.0,0.21920876]
[1764691519169,0.00011393,91239.0,91233.0,0.01096094]
[1764691519170,0.01096082,91234.0,91229.0,0.81166365]
[1764691519368,0.21931913,91239.0,91235.0,0.0109607]
[1764691519533,0.00011393,91239.0,91237.0,0.21920871]
[1764691519726,0.00011393,91239.0,91238.0,0.06104]
[1764691519936,0.00011393,91239.0,91238.0,0.16058]
[1764691520362,0.00011393,91239.0,91238.0,0.182572]
[1764691520777,0.00011393,91239.0,91238.0,0.16058]
[1764691520977,0.00011393,91239.0,91238.0,0.182572]
[1764691521852,0.00011393,91239.0,91238.0,0.16058]
[1764691522064,0.00011393,91239.0,91238.0,0.19929276]
[1764691522263,0.00011393,91239.0,91238.0,0.18250069]
[1764691522485,0.00011393,91239.0,91238.0,0.20030069]
[1764691522979,0.00067155,91239.0,91238.0,0.22229269]
[1764691523402,0.00067155,91239.0,91238.0,0.21452699]
[1764691523605,0.00067155,91239.0,91238.0,0.20030069]
[1764691524213,0.00067155,91239.0,91238.0,0.19275025]
[1764691524431,1e-08,91239.0,91238.0,0.20030069]
[1764691524641,0.0002,91260.0,91259.0,0.21915646]
[1764691524852,0.0002,91260.0,91259.0,0.28113646]
[1764691525039,0.0002,91260.0,91259.0,0.39867646]
[1764691525174,0.0002,91260.0,91259.0,0.38087646]
[1764691525572,0.0002,91260.0,91259.0,0.40286846]
[1764691525785,0.0002,91260.0,91259.0,0.21915646]
[1764691525985,0.0002,91260.0,91259.0,0.38087646]
[1764691526954,0.0002,91260.0,91259.0,0.40286846]
[1764691527391,0.0002,91260.0,91259.0,0.38087646]
[1764691529110,0.0002,91260.0,91259.0,0.06198]
[1764691529316,0.0002,91260.0,91259.0,0.16172]
[1764691530178,0.0008161,91260.0,91259.0,0.16172]
[1764691530475,0.0008161,91260.0,91259.0,0.183712]
[1764691530732,0.0008161,91260.0,91259.0,0.20562764]
[1764691531202,0.0008161,91260.0,91259.0,0.18363564]
[1764691531408,0.0008161,91260.0,91259.0,0.16172]
[1764691531610,0.0008161,91260.0,91259.0,0.20143564]
[1764691531790,0.0008161,91260.0,91259.0,0.16172]
[1764691531993,0.0008161,91260.0,91259.0,0.18363564]
[1764691532343,0.0008161,91260.0,91259.0,0.16172]
[1764691532545,0.0008161,91260.0,91259.0,0.18363564]
[1764691534024,0.0008161,91260.0,91258.0,0.52915886]
[1764691534177,0.0002,91260.0,91258.0,0.52915886]
[1764691534399,0.00058677,91259.0,91258.0,0.31]
[1764691534602,0.01095962,91244.0,91241.0,0.04673]
[1764691534798,0.21919729,91242.0,91241.0,0.04684393]
[1764691535023,0.01095962,91244.0,91241.0,0.00011393]
[1764691535204,0.21919657,91243.0,91241.0,0.00011393]
[1764691535544,0.08234306,91242.0,91241.0,0.00011393]
[1764691536164,0.03333306,91242.0,91241.0,0.00011393]
[1764691536401,0.01095914,91248.0,91241.0,0.00011393]
[1764691536605,0.03284306,91242.0,91241.0,0.00011393]
[1764691537043,0.00049,91242.0,91241.0,0.00011393]
[1764691537520,0.01776,91244.0,91242.0,0.21919729]
[1764691537732,0.01776,91244.0,91241.0,0.00011393]
[1764691537950,0.21919563,91243.0,91241.0,0.00011393]
[1764691538539,0.01095914,91248.0,91241.0,0.00011393]
[1764691538540,0.03331,91259.0,91254.0,0.01095842]
[1764691538751,0.01095746,91262.0,91257.0,0.01095806]
[1764691538949,0.01776,91261.0,91258.0,0.21915786]
[1764691539274,0.01776,91261.0,91258.0,0.21915886]
[1764691539275,0.02871758,91261.0,91258.0,0.21915886]
[1764691539620,0.01776,91261.0,91257.0,0.01095806]
[1764691539827,0.23013012,91253.0,91247.0,0.01095926]
[1764691540023,0.00023474,91247.0,91246.0,0.01095938]
[1764691540719,0.00023474,91247.0,91242.0,0.01095986]
[1764691540926,0.00023474,91247.0,91245.0,0.2191896]
[1764691541129,0.00023474,91247.0,91246.0,0.04691]
[1764691541550,0.00023474,91247.0,91245.0,0.2191896]
[1764691541551,0.00023474,91247.0,91245.0,0.21918859]
[1764691541999,0.00023474,91247.0,91246.0,0.04691]
[1764691542417,0.00023474,91247.0,91246.0,0.14556]
[1764691542624,0.00023474,91247.0,91246.0,0.23148876]
[1764691543041,0.00023474,91247.0,91246.0,0.11092]
[1764691543250,0.00023474,91247.0,91241.0,0.00011393]
[1764691543459,0.03331,91242.0,91241.0,0.00011393]
[1764691544448,0.08281,91242.0,91241.0,0.00011393]
[1764691544648,0.01096407,91207.0,91201.0,0.01096479]
[1764691544811,0.23024264,91209.0,91200.0,0.01096491]
[1764691545023,0.02872334,91213.0,91206.0,0.01096419]
[1764691545254,0.01096358,91211.0,91207.0,0.01096407]
[1764691545594,0.01776,91213.0,91210.0,0.01096371]
[1764691545883,0.21927979,91208.0,91205.0,0.04691]
[1764691546081,0.21927979,91208.0,91177.0,0.43870354]
[1764691546082,0.01096455,91203.0,91195.0,0.01096551]
[1764691546252,0.01096443,91204.0,91197.0,0.01096527]
[1764691546468,0.01096443,91204.0,91198.0,0.23026678]
[1764691546609,0.23025251,91205.0,91198.0,0.23026678]
[1764691546610,0.21928695,91205.0,91201.0,0.01096479]
[1764691546814,0.21928695,91205.0,91198.0,0.01096515]
[1764691546815,0.2192742,91210.0,91204.0,0.01096443]
[1764691547021,0.01096419,91206.0,91201.0,0.01096479]
[1764691547266,0.01096407,91207.0,91204.0,0.01096443]
[1764691547471,0.01096479,91201.0,91196.0,0.01096539]
[1764691547691,0.21929436,91202.0,91198.0,0.01096515]
[1764691547919,0.01096395,91208.0,91204.0,0.01096443]
[1764691548066,0.01096455,91203.0,91200.0,0.23026181]
[1764691548441,0.01096395,91208.0,91200.0,0.23026181]
[1764691548442,0.23023814,91210.0,91205.0,0.01096431]
[1764691548579,0.02244,91212.0,91207.0,0.01096407]
[1764691548786,0.01776,91214.0,91211.0,0.01096358]
[1764691548994,0.03284306,91213.0,91212.0,0.21926771]
[1764691549420,0.03284306,91213.0,91208.0,0.01096395]
[1764691549618,0.03284306,91213.0,91209.0,0.01096383]
[1764691549822,0.03284306,91213.0,91211.0,0.21927091]
[1764691550105,0.25265605,91219.0,91211.0,0.21927091]
[1764691550106,0.01776,91223.0,91218.0,0.01096274]
[1764691550282,0.01096262,91219.0,91214.0,0.01096322]
[1764691550523,0.01096262,91219.0,91210.0,0.82262736]
[1764691550524,0.01096274,91218.0,91213.0,0.01096334]
[1764691550743,0.01776,91223.0,91220.0,0.0109625]
[1764691550942,0.01776,91223.0,91221.0,0.21924591]
[1764691551148,0.07171,91239.0,91221.0,0.21924591]
[1764691551149,0.01096058,91236.0,91226.0,0.01096178]
[1764691551364,0.03923758,91258.0,91226.0,0.01096178]
[1764691551365,0.03284306,91232.0,91231.0,0.21922372]
[1764691551568,0.03284306,91232.0,91230.0,0.21922613]
[1764691551781,0.03284306,91232.0,91225.0,0.0109619]
[1764691551782,0.23020657,91223.0,91218.0,0.21925448]
[1764691551984,0.21923574,91226.0,91221.0,0.01096238]
[1764691552200,0.03284306,91232.0,91210.0,0.81166365]
[1764691552201,0.03284306,91232.0,91227.0,0.01096166]
[1764691552425,0.00011382,91232.0,91229.0,0.01096142]
[1764691552615,0.00011382,91232.0,91231.0,0.04691]
[1764691553636,0.00011382,91232.0,91230.0,0.21922576]
[1764691553842,0.00011382,91232.0,91229.0,0.01096142]
[1764691553997,0.00011382,91232.0,91230.0,0.21922554]
[1764691554410,0.00011382,91232.0,91229.0,0.23018726]
[1764691554411,0.00011382,91232.0,91229.0,0.01096142]
[1764691554666,0.00011382,91232.0,91230.0,0.21922497]
[1764691555068,0.00011382,91232.0,91226.0,0.01096178]
[1764691555279,0.01096178,91226.0,91215.0,0.0109631]
[1764691555414,0.01096214,91223.0,91210.0,0.81166365]
[1764691555612,0.02293,91211.0,91190.0,0.81166365]
[1764691555876,0.02293,91211.0,91185.0,0.09865]
[1764691555877,0.02244,91211.0,91208.0,0.01096395]
[1764691556058,0.23701914,91217.0,91211.0,0.01096358]
[1764691556235,0.26306889,91215.0,91212.0,0.21926868]
[1764691556440,0.01096371,91210.0,91206.0,0.04691]
[1764691556637,0.01096371,91210.0,91207.0,0.01096407]
[1764691557006,0.01096371,91210.0,91202.0,0.23025588]
[1764691557007,0.0495,91206.0,91183.0,0.09865]
[1764691557223,0.0495,91206.0,91179.0,0.01096743]
[1764691557224,0.01096611,91190.0,91182.0,0.05787707]
[1764691557424,0.03284306,91197.0,91182.0,0.05787707]
[1764691557425,0.0335,91187.0,91186.0,0.21933078]
[1764691557551,0.03284306,91197.0,91186.0,0.01096659]
[1764691557552,0.01096599,91191.0,91186.0,0.01096659]
[1764691557758,0.0335,91196.0,91188.0,0.01096635]
[1764691557759,0.23028469,91192.0,91188.0,0.01096635]
[1764691557979,0.01096575,91193.0,91189.0,0.23029006]
[1764691558154,0.01096575,91193.0,91188.0,0.01096635]
[1764691558155,0.01096599,91191.0,91187.0,0.01096647]
[1764691558358,0.01096599,91191.0,91188.0,0.23029313]
[1764691558728,0.24804421,91192.0,91189.0,0.23028932]
[1764691558901,0.23028639,91191.0,91187.0,0.01108033]
[1764691559113,0.00049,91188.0,91187.0,0.00011386]
[1764691559655,0.0495,91188.0,91187.0,0.00011386]
[1764691560599,0.01776,91192.0,91187.0,0.00011386]
[1764691560809,0.0495,91210.0,91194.0,0.21931211]
[1764691561078,0.01776,91199.0,91194.0,0.21931211]
[1764691561275,0.03284306,91195.0,91189.0,0.01096623]
[1764691561477,0.03284306,91195.0,91193.0,0.21931476]
[1764691562311,0.01776,91199.0,91195.0,0.21931026]
[1764691562513,0.01776,91199.0,91192.0,0.01096587]
[1764691562514,0.21932585,91189.0,91187.0,0.00011386]
[1764691562717,0.06726,91188.0,91187.0,0.00011386]
[1764691562918,0.06775,91188.0,91187.0,0.00011386]
[1764691563323,0.06775,91188.0,91120.0,0.0004]
[1764691563324,0.01096972,91160.0,91151.0,0.0109708]
[1764691563541,0.21938725,91163.0,91153.0,0.01097056]
[1764691563765,0.21938725,91163.0,91151.0,0.01135055]
[1764691563766,0.21990372,91152.0,91151.0,0.00037975]
[1764691563932,0.26891372,91152.0,91151.0,0.00037975]
[1764691564349,0.28667372,91152.0,91151.0,0.00037975]
[1764691564704,0.28667372,91152.0,91120.0,0.0004]
[1764691564705,0.01097357,91128.0,91120.0,0.21988851]
[1764691564905,0.28667372,91152.0,91120.0,0.21988851]
[1764691564906,0.01776,91133.0,91129.0,0.21946881]
[1764691565112,0.03284306,91145.0,91143.0,0.21943348]
[1764691565331,0.01776,91143.0,91136.0,0.01097261]
[1764691565462,0.01776,91143.0,91120.0,1.09114106]
[1764691565463,0.01097321,91131.0,91125.0,0.21947764]
[1764691565667,0.2304498,91127.0,91120.0,0.00161358]
[1764691565877,0.01097213,91140.0,91122.0,0.01097429]
[1764691566075,0.25231053,91130.0,91122.0,0.2304589]
[1764691566277,0.25231053,91130.0,91120.0,0.00051398]
[1764691566278,0.0335,91123.0,91120.0,0.00051398]
[1764691566505,0.01097321,91131.0,91120.0,0.00051398]
[1764691566506,0.04381651,91129.0,91124.0,0.01097405]
[1764691566740,0.01097369,91127.0,91122.0,0.23045855]
[1764691566905,0.03284306,91129.0,91127.0,0.21947288]
[1764691567273,0.03284306,91129.0,91120.0,0.00051398]
[1764691567274,0.21948719,91122.0,91120.0,0.00051398]
[1764691567482,0.25298719,91122.0,91120.0,0.00051398]
[1764691567690,0.0335,91122.0,91120.0,0.00051398]
[1764691567895,0.00049,91121.0,91120.0,0.00051398]
[1764691568080,0.0335,91122.0,91120.0,0.00051398]
[1764691568294,0.0335,91122.0,91121.0,0.21948837]
[1764691568706,0.0335,91122.0,91120.0,0.00051398]
[1764691569136,0.25298813,91122.0,91120.0,0.00051398]
[1764691569263,0.0335,91122.0,91120.0,0.00051398]
[1764691569459,0.0335,91122.0,91120.0,0.22000356]
[1764691569666,0.01776,91131.0,91125.0,0.01097393]
[1764691569966,0.01776,91131.0,91120.0,0.01148851]
[1764691569967,0.0335,91121.0,91120.0,0.01148851]
[1764691570377,0.03284306,91130.0,91125.0,0.01097393]
[1764691570578,0.01776,91131.0,91128.0,0.23044368]
[1764691570817,0.01776,91131.0,91127.0,0.01097369]
[1764691570818,0.03284306,91130.0,91127.0,0.230446]
[1764691571176,0.01097369,91127.0,91123.0,0.01097417]
[1764691571378,0.21948615,91122.0,91120.0,0.00051398]
[1764691571585,0.10092,91121.0,91120.0,0.00051398]